Cogmind - Beta 16 @@@ ROGUE MODE // 2025.10.25 @ 22:33:30 Player: shapeshifter Result: Destroyed by G-34 Mercenary with Small Laser Performance ------------- Evolutions (0) 0 Regions Visited (4) 800 Robots Destroyed (18) 90 Value Destroyed (463) 463 Prototype IDs (25) 500 Alien Tech Used (0) 0 Bonus (300) 300 TOTAL SCORE: 2153 Bonus ------- Aligned with FarCom 300 Cogmind --------- Core Integrity 0/250 Matter 298/300 Energy 100/100 System Corruption 0% Temperature Cool (7) Movement Walking (190) Ox1 Location -9/Mines Parts ------- > --- POWER (1) -------- (None) > --- PROPULSION (2) --- Improved Aluminum Leg > --- UTILITY (2) ------ Large Storage Unit Seismic Detector > --- WEAPON (2) ------- Light Assault Rifle > --- INVENTORY (15) --- Ion Engine Ion Engine Reinforced Deuterium Engine Reinforced Deuterium Engine Reinforced Deuterium Engine Wheel Huge Storage Unit Experimental Sensor Array Improved Terrain Scanner 0b10 Alert Chip Core Shielding Core Shielding Sensor Drone Bay (20/20) Chronowheel Field Lobotomy Kit (5) Peak State ------------ > --- POWER ------------ Ion Engine > --- PROPULSION ------- Light Treads Light Treads > --- UTILITY ---------- Large Storage Unit Sensor Drone Bay > --- WEAPON ----------- Assault Rifle Light Assault Rifle > --- INVENTORY -------- Ion Engine Reinforced Deuterium Engine Reinforced Deuterium Engine Reinforced Deuterium Engine Wheel Compact Wheel Huge Storage Unit Experimental Sensor Array Improved Terrain Scanner Seismic Detector 0b10 Alert Chip Core Shielding Chronowheel Light Assault Rifle Field Lobotomy Kit [Rating: 20] Favorites ----------- Power Ion Engine Engine Ion Engine Propulsion Light Treads Treads Light Treads Leg Aluminum Leg Wheel Compact Wheel Utility Seismic Detector Device Seismic Detector Storage Large Storage Unit Weapon Light Assault Rifle Energy Gun Small Laser Ballistic Gun Light Assault Rifle Build | -11 -10 -10 -10 -9 ------- Run | Yrd Mat Min Exi Min Slots Evolved . | . . . . . Power . | . . . . . Propulsion . | . . . . . Utility . | . . . . . Weapon . | . . . . . Parts Attached 18 | 7 . 1 1 9 Power 2 | 1 . . . 1 Engine 2 | 1 . . . 1 Core . | . . . . . Reactor . | . . . . . Propulsion 6 | 2 . . . 4 Treads 2 | 2 . . . . Leg 2 | . . . . 2 Wheel 2 | . . . . 2 Hover . | . . . . . Flight . | . . . . . Utility 6 | 2 . 1 1 2 Device 3 | 1 . . . 2 Storage 3 | 1 . 1 1 . Processor . | . . . . . Hackware . | . . . . . Protection . | . . . . . Artifact . | . . . . . Weapon 4 | 2 . . . 2 Energy Gun 1 | . . . . 1 Energy Cannon . | . . . . . Ballistic Gun 3 | 2 . . . 1 Ballistic Cannon . | . . . . . Launcher . | . . . . . Special Weapon . | . . . . . Impact Weapon . | . . . . . Slashing Weapon . | . . . . . Piercing Weapon . | . . . . . Special Melee Weapon . | . . . . . Unidentified Prototypes 2 | . . . . 2 Parts Lost 7 | . . . . 7 Power 1 | . . . . 1 Propulsion 3 | . . . . 3 Utility . | . . . . . Weapon 3 | . . . . 3 Highest Loss Streak 3 | . . . . 3 To Critical Strikes . | . . . . . Average Backups 10 | 3 5 7 11 13 Power 3 | . 1 1 4 4 Propulsion 1 | 1 2 2 2 . Utility 3 | . 1 2 2 6 Weapon . | 1 1 1 1 . Tool/Special . | . . . . . Unused Backups 12 | . . . . 12 Power 4 | . . . . 4 Propulsion 1 | . . . . 1 Utility 5 | . . . . 5 Weapon . | . . . . . Tool/Special 2 | . . . . 2 Average Slot Usage (%) 96 | . 100 100 100 92 Engine 13 | . 14 14 14 13 Treads 20 | . 28 28 28 12 Leg 2 | . . . . 5 Wheel 1 | . . . . 3 Device 14 | . 14 14 14 14 Storage 14 | . 14 14 14 14 Energy Gun 2 | . . . . 5 Ballistic Gun 25 | . 28 28 28 22 Peak Build Rating 20 | 7 7 8 12 20 Average Rating 9 | 5 7 7 9 12 On Entrance 6 | . 7 7 8 12 Avg Prop Armor Cover (%) . | . . . . . Naked Turns . | . . . . . Heaviest Build 29 | 14 14 29 29 29 Greatest Support 40 | 40 40 40 40 40 Greatest Overweight (x) 9 | . . . . 9 Average Overweight (x) . | . . . . . Largest Inventory Capacity 15 | 8 8 15 15 15 Average Capacity 13 | 7 8 12 15 15 Most Carried 15 | 6 5 8 13 15 Average Carried 10 | 3 5 7 11 13 Final Capacity 15 | 8 8 15 15 15 Final Carried 15 | 5 5 8 13 15 Class Distribution -------------------- 98% | Mutant Dominant Class ---------------- Mutant | -10/Materials Mutant | -10/Mines Mutant | -10/Exiles Mutant | -9/Mines Resources | -11 -10 -10 -10 -9 ----------- Run | Yrd Mat Min Exi Min Matter Collected 602 | 318 8 58 . 218 Remotely . | . . . . . Salvage Created 639 | 122 45 138 . 334 Parts 42 | 8 3 10 . 21 Haulers Intercepted . | . . . . . Recyclers Shooed . | . . . . . Parts Field Recycled . | . . . . . Retrieved Matter . | . . . . . Parts Self-Destructed . | . . . . . Prevented . | . . . . . Parts Restored . | . . . . . Kills | -11 -10 -10 -10 -9 ------- Run | Yrd Mat Min Exi Min Combat Hostiles Destroyed 13 | . 1 5 . 7 Guns 13 | . 1 5 . 7 Classes Destroyed 6 | 2 1 1 . 2 Worker 1 | . . . . 1 Tunneler 3 | 3 . . . . Recycler 1 | 1 . . . . Swarmer 3 | . . 3 . . Grunt 8 | . 1 2 . 5 Duelist 2 | . . . . 2 Best Kill Streak 3 | 3 1 3 . 2 Combat Bots Only 3 | . 1 3 . 2 Max Kills in Single Turn 1 | 1 1 1 . 1 Gunslinging . | . . . . . Exploded . | . . . . . Melee . | . . . . . Uniques/NPCs Destroyed . | . . . . . Combat | -11 -10 -10 -10 -9 -------- Run | Yrd Mat Min Exi Min Hostile Shots Fired 95 | . 2 16 . 77 Missed 17 | . . 2 . 15 Hits 78 | . 2 14 . 62 Melee 6 | . . . . 6 Projectile 72 | . 2 14 . 56 Critical Strikes 2 | . . . . 2 Damage Taken 1085 | . 21 161 . 903 Core 252 | . . 37 . 215 Absorbed by Shields . | . . . . . Core Remaining (%) 100 | 100 . . . . Volleys Fired 74 | 12 3 11 . 48 Largest 2 | 2 2 2 . 2 Hottest 60 | 40 40 40 . 60 Shots Fired 137 | 24 6 22 . 85 Gun 137 | 24 6 22 . 85 Cannon . | . . . . . Launcher . | . . . . . Special . | . . . . . Kinetic 128 | 24 6 22 . 76 Thermal 9 | . . . . 9 Explosive . | . . . . . Electromagnetic . | . . . . . Robot Hit Streak 10 | 6 7 3 . 10 Robot Miss Streak 4 | 3 2 2 . 4 Penetration Max . | . . . . . Secondary Targets 1 | . . . . 1 Max Gunslinging Chain 1 | . . . . 1 Shots Hit Robots 85 | 15 2 13 . 55 Core Hits 37 | 7 2 7 . 21 Critical Kills 1 | . . 1 . . Critical Parts Destroyed 1 | 1 . . . . Critical Strikes 2 | 1 . 1 . . Destroy 2 | 1 . 1 . . Melee Attacks . | . . . . . Impact . | . . . . . Slashing . | . . . . . Piercing . | . . . . . Sneak Attacks . | . . . . . Combat Hostiles . | . . . . . Follow-up Attacks . | . . . . . Damage Inflicted 891 | 176 24 135 . 556 Guns 891 | 176 24 135 . 556 Cannons . | . . . . . Explosions . | . . . . . Melee . | . . . . . Ramming . | . . . . . Kinetic 814 | 176 24 135 . 479 Thermal 77 | . . . . 77 Explosive . | . . . . . Electromagnetic . | . . . . . Impact . | . . . . . Slashing . | . . . . . Piercing . | . . . . . Highest Corruption . | . . . . . Average Corruption . | . . . . . Corruption Purged . | . . . . . Corruption Blocked . | . . . . . Overload Shots . | . . . . . Overflow Damage . | . . . . . Projectiles . | . . . . . Explosions . | . . . . . Melee . | . . . . . Knockbacks . | . . . . . Impact . | . . . . . Kinetic . | . . . . . Secondary . | . . . . . Self-Inflicted Damage . | . . . . . Shots . | . . . . . Rammed . | . . . . . Targets Rammed . | . . . . . Kicked . | . . . . . Crushed . | . . . . . Highest Temperature 92 | . 6 25 . 92 Average Temperature 18 | . 6 13 . 19 Received Heat Transfer 501 | . 12 78 . 411 Siege Activations . | . . . . . Martial Activations . | . . . . . Shielding Activations . | . . . . . Robots Disrupted . | . . . . . Combat Hostiles . | . . . . . Robots Corrupted . | . . . . . Combat Hostiles . | . . . . . Parts Fried . | . . . . . Impact Corruptions . | . . . . . Robots Melted . | . . . . . Combat Hostiles . | . . . . . Parts Melted . | . . . . . Heat Transferred 175 | . . . . 175 Parts Sabotaged . | . . . . . Parts Stolen . | . . . . . Parts Stripped . | . . . . . Power Chain Reactions . | . . . . . Alert | -11 -10 -10 -10 -9 ------- Run | Yrd Mat Min Exi Min Maximum Alert Level . | . . . . . Low Security (%) 100 | 100 100 100 . 100 Level 1 . | . . . . . Level 2 . | . . . . . Level 3 . | . . . . . Level 4 . | . . . . . Level 5 . | . . . . . High Security . | . . . . . Max Security . | . . . . . Peak Influence 62 | 10 30 62 . 40 Initial . | . . . . . Average 5 | 1 3 10 . 3 Influence Increases 369 | 20 44 120 . 185 Destroy 0b10 Robot/C 260 | . 20 100 . 140 Destroy 0b10 Robot/NC 25 | 20 . . . 5 Destroy Leader 70 | . 10 20 . 40 Successful Hack 14 | . 14 . . . Influence Decreases 339 | 20 44 120 . 155 Time Decay 304 | 20 44 120 . 120 Lost Part 35 | . . . . 35 Squads Dispatched 2 | . 2 . . . Investigation 1 | . 1 . . . Extermination . | . . . . . Reinforcement 1 | . 1 . . . Assault . | . . . . . Garrison . | . . . . . Intercept . | . . . . . Searches Triggered . | . . . . . Construction Impeded . | . . . . . Haulers Reinforced . | . . . . . Active Scanning Responses . | . . . . . Cargo Convoy Interrupts . | . . . . . Stealth | -11 -10 -10 -10 -9 --------- Run | Yrd Mat Min Exi Min Distress Signals 1 | . . 1 . . Communications Jammed . | . . . . . Distress Signals . | . . . . . Times Spotted 17 | . 3 5 . 9 Peak Tracking Total 3 | . 1 2 . 3 Tactical Retreats . | . . . . . Traps | -11 -10 -10 -10 -9 ------- Run | Yrd Mat Min Exi Min Traps Triggered 1 | . 1 . . . Indirectly . | . . . . . Trap Hack Attempts . | . . . . . Triggered . | . . . . . Disarmed . | . . . . . Reprogrammed . | . . . . . Reused . | . . . . . Traps Extracted . | . . . . . Installed . | . . . . . Triggered . | . . . . . Machines | -11 -10 -10 -10 -9 ---------- Run | Yrd Mat Min Exi Min Machines Disabled . | . . . . . Max in Single Turn . | . . . . . Machines Repaired . | . . . . . Machines Dismantled . | . . . . . Machines Sabotaged . | . . . . . Overloaded Fab Kills . | . . . . . Hacking | -11 -10 -10 -10 -9 --------- Run | Yrd Mat Min Exi Min Machines Accessed 7 | . 4 . 2 1 Terminals 3 | . 3 . . . Fabricators . | . . . . . Repair Stations . | . . . . . Recycling Units 1 | . 1 . . . Scanalyzers . | . . . . . Garrison Access . | . . . . . Total Hacks 16 | . 13 . 2 1 Successful 8 | . 5 . 2 1 Failed 8 | . 8 . . . Catastrophic 1 | . 1 . . . Database Lockouts . | . . . . . Manual 14 | . 13 . 1 . Terminals 10 | . 10 . . . Fabricators . | . . . . . Repair Stations . | . . . . . Recycling Units 3 | . 3 . . . Scanalyzers . | . . . . . Garrison Access . | . . . . . Terminal Hacks 3 | . . . 2 1 Record 1 | . . . 1 . Open Door 1 | . . . . 1 Proto ID Catalog 1 | . . . 1 . Fabricator Hacks . | . . . . . Repair Station Hacks . | . . . . . Recycling Unit Hacks 1 | . 1 . . . Retrieve Components 1 | . 1 . . . Scanalyzer . | . . . . . Garrison Access Hacks . | . . . . . Unauthorized Hacks 4 | . 4 . . . Terminals 4 | . 4 . . . Operators 1 | . 1 . . . Skim 3 | . 3 . . . Fabricators . | . . . . . Repair Stations . | . . . . . Recycling Units . | . . . . . Scanalyzers . | . . . . . Garrison Access . | . . . . . Data Cores Recovered . | . . . . . Used . | . . . . . Hacking Detections 4 | . 4 . . . Full Trace Events 1 | . 1 . . . Feedback Events . | . . . . . Feedback Blocked . | . . . . . Robot Schematics Acquired . | . . . . . Robots Built . | . . . . . Authchips . | . . . . . Time . | . . . . . Total Robot Build Rating . | . . . . . Part Schematics Acquired . | . . . . . Parts Built . | . . . . . Authchips . | . . . . . Time . | . . . . . Total Part Build Rating . | . . . . . Part Studies Acquired . | . . . . . Parts Repaired . | . . . . . Time . | . . . . . Parts Recycled . | . . . . . Recycled Matter . | . . . . . Retrieved Matter . | . . . . . Retrieved Components 1 | . 1 . . . Parts Scanalyzed . | . . . . . Part Schematics Acquired . | . . . . . Parts Damaged . | . . . . . Bothacking | -11 -10 -10 -10 -9 ------------ Run | Yrd Mat Min Exi Min Used RIF Installer . | . . . . . Robots Hacked . | . . . . . Non-combat . | . . . . . Combat . | . . . . . Robot Hacks Applied . | . . . . . Relay Couplers Released . | . . . . . Fabnet Peak Effective % . | . . . . . Robots Rewired . | . . . . . Allies Hacked . | . . . . . Hacks Repelled . | . . . . . Allies | -11 -10 -10 -10 -9 -------- Run | Yrd Mat Min Exi Min Total Allies . | . . . . . Largest Group . | . . . . . Highest-Rated Group . | . . . . . Highest-Rated Ally . | . . . . . Total Orders . | . . . . . Ally Attacks . | . . . . . Total Damage . | . . . . . Kills . | . . . . . Allies Corrupted . | . . . . . Allies Melted . | . . . . . Intel | -11 -10 -10 -10 -9 ------- Run | Yrd Mat Min Exi Min Active Infowar (turns) 3015 | 28 240 753 525 1469 Sensors 2 | . . . . 2 Seismic 3013 | 28 240 753 525 1467 Robot Analysis Total . | . . . . . Derelict Logs Recovered 2 | . . 1 . 1 Drone Launches . | . . . . . Drone Recoveries . | . . . . . Exploration | -11 -10 -10 -10 -9 ------------- Run | Yrd Mat Min Exi Min Turns Passed 3151 | 163 240 753 525 1470 Spaces Moved 1740 | 75 145 449 323 748 Core 9 | 7 . . . 2 Treads 1351 | 68 145 449 323 366 Legs 225 | . . . . 225 Wheels 155 | . . . . 155 Hover . | . . . . . Flight . | . . . . . Fastest Speed 50 | 50 160 160 160 105 Average Speed 165 | 149 160 160 160 173 Slowest Speed 500 | 160 160 160 160 500 Overloaded Moves . | . . . . . Propulsion Burnouts . | . . . . . Robots Hopped . | . . . . . Potential Cave-ins . | . . . . . Cave-ins Triggered . | . . . . . Exploration Rate (%) 60 | 5 32 96 69 98 Regions Visited 4 Branch Regions 3 Pre-discovered Areas 1 | . . . 1 . Known Exits Taken . | . . . . . Unknown Exits Taken 4 | 1 1 1 1 . Scrap Searched 3 | . . 2 . 1 Spaces Dug . | . . . . . Terrain Destroyed . | . . . . . Melee . | . . . . . Projectile . | . . . . . AOE . | . . . . . Terrain Rammed . | . . . . . Walls Destroyed . | . . . . . Machines Disabled . | . . . . . Actions | -11 -10 -10 -10 -9 --------- Run | Yrd Mat Min Exi Min Total 1888 | 104 148 463 332 841 Wait 24 | . . . . 24 Move 1736 | 74 144 448 322 748 Hop . | . . . . . Pick Up 29 | 11 . 3 7 8 Fast Attach 1 | 1 . . . . Attach 12 | 6 . . . 6 Detach 1 | . . . . 1 Swap 7 | . . 1 1 5 Drop 3 | . . . 2 1 Fire 74 | 12 3 11 . 48 Melee . | . . . . . Ram . | . . . . . Kick . | . . . . . Crush . | . . . . . Escape Stasis . | . . . . . Rewire 1 | . 1 . . . Trap . | . . . . . Miscellaneous . | . . . . . Route ------- -11/Scrapyard -10/Materials -10/Mines (discovered 2 exits: [*Mat] / *Exi) -10/Exiles -9/Mines (discovered 2 exits: *Mat x2) History --------- Turn | Location | Event 5 | -11/Scrapyard | Discovered new exit (range 15) 164 | -11/Scrapyard | Entered Materials 317 | -10/Materials | Build established: Mutant 341 | -10/Materials | Discovered new exit (range 6) 404 | -10/Materials | Entered Mines 704 | -10/Mines | Learned Materials emergency access door positions 913 | -10/Mines | Discovered new exit (range 10) 968 | -10/Mines | Deemed a non-threat by the Exiles lab entrance 968 | -10/Mines | Discovered new exit (range 5) 1157 | -10/Mines | Entered Exiles 1200 | -10/Exiles | Met 8R-AWN 1226 | -10/Exiles | Met EX-HEX 1300 | -10/Exiles | Met EX-DEC 1330 | -10/Exiles | Learned location of Zion (-7) 1455 | -10/Exiles | Met EX-BIN 1478 | -10/Exiles | Aligned with FarCom system 1479 | -10/Exiles | Given EX-Vault access code 1516 | -10/Exiles | Opened EX-Vault 1526 | -10/Exiles | Found Field Lobotomy Kit 1528 | -10/Exiles | Found Chronowheel 1534 | -10/Exiles | Found 0b10 Alert Chip 1565 | -10/Exiles | Warned to stay clear of 0b10 Research branches 1584 | -10/Exiles | Exiles lab attacked by MAIN.C 1666 | -10/Exiles | Discovered new exit (range 12) 1682 | -10/Exiles | Stole three prototypes: 0b10 Alert Chip, Chronowheel, Field Lobotomy Kit 1682 | -10/Exiles | Entered Mines 1714 | -9/Mines | Met a Derelict bent on vengeance 1800 | -9/Mines | Found a damaged Exp. Sensor Array with a note attached 1805 | -9/Mines | Found Prototype Device 1848 | -9/Mines | Identified exit to Materials 2157 | -9/Mines | Found the Drone Emporium 2166 | -9/Mines | Found Prototype Device 2167 | -9/Mines | Identified Sensor Drone Bay 2240 | -9/Mines | Identified Exp. Sensor Array 2509 | -9/Mines | Discovered exit to Materials (range 14) 2541 | -9/Mines | Core integrity fell below 50% 2579 | -9/Mines | Lost 3 parts (2n1w) 3148 | -9/Mines | Core integrity fell below 20% 3152 | -9/Mines | Destroyed by G-34 Mercenary with Small Laser Last Messages --------------- 02523_ Assault Rifle destroyed. 02538_ Wheel destroyed. 02542_ G-34 Mercenary destroyed. 02544_ Acquired 10 matter. 02546_ Acquired Sml. Laser. 02548_ Com. Wheel destroyed. 02558_ Critical hit (Burn: +37). 02560_ G-47 Trooper destroyed. 02565_ Acquired 10 matter. 02575_ Acquired Aluminum Leg. 02577_ Acquired 10 matter. 03096_ Acquired Imp. Aluminum Leg. 03100_ Acquired 10 matter. 03104_ Acquired Wheel. 03130_ C-30 ARC bursts open, deploying its payload. 03130_ L-31 Rogue unfolds itself. 03130_ G-34 Mercenary unfolds itself. 03144_ Aluminum Leg severed. 03149_ Sml. Laser destroyed. 03151_ L-31 Rogue destroyed. Map ----- +----------------------------------------------------+ | ##????#### #????????????## #????? | | #????????### ##?????????????# ##????? | | #??????????####??????????????# ##?????? | | #????????####????????????????# #??????? | | ##???????## ##???????????????## ##??????? | | #???????## ##???????????????####???????? | | ????????# ##?????????????????????????? | | ????????# ##????????????????????????? | | ???????## #????????????????????????? | | ?????### #????????????????????????? | | ???### ###????????????????????????? | | ??## ##???###??###???????????????? | | ?## ##????#" #?????????????? | | ?# ##?????#%" #?????????????? | | ?# #####??????#" < #?????????????? | | ?# ##??????????# #?????????????? | | ### ##??????????# #?????????????? | | #?## #######????# """ #?????????????? | | #??##*! ## ##???# """ #?????????????? | | #???#%* ##??# """ #?????????????? | | #??##! ##?# #?????????????? | | ??## #?###### ###?????????????? | | ?## t ##?????# ##########??????? | | ## ##### #######g #??????? | | # ##???## g%######## #??????? | | ##?????# @#??????# #??????? | | ##??????# ######??????# #??????? | | #???????## #???????????# #??????? | | #####????## #???????????# #??????? | | ##????## #???????????# #??????? | | #?????## #######??????# #??????? | | ##?????#####""""##?????# #??????? | | #????????#" "#?????# #??????? | | ## #????????#" "#?????# #??????? | | ?#### #????????## ##?????# #??????? | | ????## #????????### ###?????# #??????? | | ?????# #????????# X #?????# #??????? | | ?????# #????????# ##????# #??????? | | ?????# #????????# ## ##???# #####??? | | ?????# #????????## #??## ##?? | | ????## ##????????## #### #?? | | ??### ##????????## #?? | | ### #?????????## #?? | | ## #??????????####### #?? | | ## ## ##????????????????## #?? | | ## ########??????????????????### ##?? | | #????????????????????????????######??? | | ######????????????????????????????????????? | | ??????????????????????????????????????????? | | | +----------------------------------------------------+ Best States ------------- Heat Dissipation 25 Energy Generation 10 Energy Capacity 250 Matter Stores 300 Matter Capacity 300 Sight Range 16 Terrain Scan Density 10 Evasion (%) 55 Recoil Reduction 2 Item Schematics ----------------- None Robot Schematics ------------------ None Fabricated ------------ Nothing Repaired ---------- Nothing Studied --------- None Alien Tech Used ----------------- None Achievements -------------- None Challenges ------------ None Game ------ Seed RemoteIonicEngine Manual? 0 Play Time 00:09:48 Cumulative 422.1 hours Start 2025.10.25 @ 09:00:03 End 2025.10.25 @ 22:33:30 Sessions 2 Manual Loads 0 Difficulty Rogue Special Mode None Game No. 546 Rogue 546 Adventurer 0 Explorer 0 Win Type - Total 12 Types 6/0/1/2/1/0/2/0/0/0 Lore% 89 Gallery% 84 Achievement% 53 Wizard Run 0 Options --------- Layout 0 ASCII 0 Keyboard 0 Movement Mouse Keybinds 0 Fullscreen 1 Font 24/Terminus Map View 76x50 Zoom Use 0% Tactical HUD 1 Map Filters NONE Filters NONE Steam 1 RUN: c59349ae-6f1e-4b97-b678-252ec0eb8651